Workbook

Sheet Resumo
B2: RESUMO - VALOR TOTAL UNITARIO E GLOBAL DO CONTRATO
B4: Item | C4: Cargo | D4: Qtd por Posto | E4: Valor por Empregado | F4: Qtd de Postos | G4: Qtde Meses | H4: Valor Mensal por Posto | I4: Valor Total Mensal | J4: Valor Total Anual
B5: 1 | C5: Bombeiro Civil 12 x 36 Diurno | D5: 8 | E5: ='Brigadista 12X36 Diurno'!C94 -> 11154.25125 | F5: 1 | G5: 12 | H5: =E5*D5 -> 89234.01003 | I5: =H5*F5 -> 89234.01003 | J5: =I5*G5 -> 1070808.12
F6: =SUM(F5) -> 1 | I6: =SUM(I5:I5) -> 89234.01003 | J6: =SUM(J5:J5) -> 1070808.12
B8: VALOR TOTAL GLOBAL DA PROPOSTA | J8: =J6 -> 1070808.12

Sheet Brigadista 12X36 Diurno
A1: POSTO: BRIGADISTA DIURNO 12 X36 ESCALA: DE SEGUNDA A DOMINGO
A2: Planilha de Proposta de Preço
A3: Processo nº:
A4: Pregão Eletrônico nº:
A5: Data da abertura:
A6: DESCRIMINAÇÃO DOS SERVIÇOS
A7: A | B7: Data da Apresentação da Proposta
A8: B | B8: Município/UF | C8: Brasília/DF
A9: C | B9: Ano Acordo, Convenção Coletiva ou Sentença Normativa em Dissídio Coletivo. | C9: SINDBOMBEIROS/DF 2024 REGISTRO NO MTE: DF000184/2024
A10: D | B10: N° de meses de execução contratual | C10: 12 meses
A11: IDENTIFICAÇÃO DOS SERVIÇOS
A12: 1 | B12: Tipo de Serviço | C12: Brigada de Incêndio
A13: 2 | B13: Salário normativo da categoria profissional | C13: 3669.27
A14: 3 | B14: Categoria profissional | C14: Bombeiro Civil
A15: 4 | B15: Classificação Brasileira de Ocupações (CBO) | C15: 5171-10
A16: 5 | B16: Data base da categoria | C16: 2024-01-01
A17: MÓDULO 1:COMPOSIÇÃO DA REMUNERAÇÃO
A18: 1 | B18: Composição da Remuneração | C18: % | D18: Valor (R$)
A19: A | B19: Salário Base da Categoria | C19: 1 | D19: =C13 -> 3669.27
A20: B | B20: Adicional de Periculosidade | C20: 0.3 | D20: =D19*C20 -> 1100.781
A21: C | B21: Adicional noturno | C21: 0 | D21: =(D19+D20)*C21 -> 0
A22: TOTAL DA REMUNERAÇÃO | C22: =SUM(C19:C21) -> 1.3 | D22: =SUM(D19:D21) -> 4770.051
A23: MÓDULO 2: BENEFICIOS MENSAIS E DIÁRIOS
A24: 2.1 | B24: GPS, FGTS e outras contribuições | C24: % | D24: Valor (R$)
B25: INSS | C25: 0.2 | D25: =$D$22*C25 -> 954.0102
B26: FGTS | C26: 0.08 | D26: =$D$22*C26 -> 381.60408
B27: SESC OU SESI | C27: 0.015 | D27: 71.550765
B28: SENAI-SENAC | C28: 0.01 | D28: 47.70051
B29: SEBRAE | C29: 0.006 | D29: 28.620306
B30: INCRA | C30: 0.002 | D30: 9.540102
B31: Salário Educação | C31: 0.025 | D31: 119.251275
B32: SAT | C32: 0.0349 | D32: 166.4747799
A33: TOTAL | C33: =SUM(C25:C32) -> 0.3729 | D33: =SUM(D25:D32) -> 1778.752018
A34: 2.2 | B34: Ausencias Legais | C34: % | D34: Valor (R$)
B35: Reposição de Férias Gozadas | C35: 0.0729 | D35: =$D$22*C35 -> 347.7367179
B36: Reposição de Faltas e Ausências | C36: 0.0378 | D36: =$D$22*C36 -> 180.3079278
B37: Reposição de Afastamentos por Doenças e Acidentes | C37: 0.0012 | D37: 5.7240612
A38: TOTAL | C38: =SUM(C35:C37) -> 0.1119 | D38: =SUM(D35:D37) -> 533.7687069
A39: 2.3 | B39: 13º Salário, Férias e Adicional de Férias | C39: % | D39: Valor (R$)
B40: 13° Salário | C40: 0.0833 | D40: =$D$22*C40 -> 397.3452483
B41: Adicional de Férias | C41: 0.0238 | D41: =$D$22*C41 -> 113.5272138
A42: TOTAL | C42: =SUM(C40:C41) -> 0.1071 | D42: =SUM(D40:D41) -> 510.8724621
A43: 2.4 | B43: Provisão para Rescisão e Indenizações | C43: % | D43: Valor (R$)
B44: Aviso Prévio Indenizado | C44: 0.0128 | D44: =$D$22*C44 -> 61.0566528
B45: Aviso Prévio Complementar | C45: 0.0083 | D45: =$D$22*C45 -> 39.5914233
B46: Reflexos sobre os Avisos Prévios Indenizados | C46: 0.0041 | D46: 19.5572091
B47: FGTS Sobre Aviso Prévio Indenizado e Complementar | C47: 0.0018 | D47: 8.5860918
B48: Aviso Prévio Trabalhado | C48: 0.0016 | D48: 7.6320816
B49: Encargos Sobre Aviso Prévio Trabalhado | C49: 0.0006 | D49: 2.8620306
B50: Multa do FGTS | C50: 0.032 | D50: 152.641632
B51: Férias Indenizadsas | C51: 0.0167 | D51: 79.6598517
B52: Adicional sobre Férias Indenizadas | C52: 0.0056 | D52: 26.7122856
A53: TOTAL | C53: =SUM(C44:C52) -> 0.0835 | D53: =SUM(D44:D52) -> 398.2992585
A54: 2.5 | B54: Direitos sobre o Abono Pecuniário | C54: % | D54: Valor (R$)
B55: Abono Pecuniário | C55: 0.0052 | D55: =$D$22*C55 -> 24.8042652
B56: 1\3 Constitucional do Abono Pecuniário | C56: 0.0017 | D56: 8.1090867
A57: TOTAL | C57: =SUM(C55:C56) -> 0.0069 | D57: =SUM(D55:D56) -> 32.9133519
A58: 2.6 | B58: Custos decorrentes das incidências | C58: % | D58: Valor (R$)
B59: Incidência Grupo "A" Sobre os Grupos "B" e "C" | C59: 0.0874 | D59: =$D$22*C59 -> 416.9024574
B60: FGTS sobre Aviso Prévio Indenizado | C60: 0.0024 | D60: 11.4481224
B61: Incidência sobre Salário Maternidade | C61: 0.0005 | D61: 2.3850255
A62: TOTAL | C62: =SUM(C59:C61) -> 0.0903 | D62: =SUM(D59:D61) -> 430.7356053
A63: TOTAL DOS ENCARGOS SOCIAIS | C63: =C62+C57+C53+C42+C38+C33 -> 0.7726 | D63: 3685.341403 | F63: =D22*0.7726 -> 3685.341403
A64: 2.3 | B64: Benefícios Mensais e Diários | D64: Valor (R$) | G64: OBSERVAÇÕES:
A65: A | B65: Transporte | D65: 0 | G65: CCT 2024
A66: B | B66: Auxílio Refeição/Alimentação | D66: =43.32*13.58 -> 588.2856 | E66: =45.23 -> 45.23 | G66: AUXÍLIO ALIMENTAÇÃO
A67: C | B67: Plano de Saúde | D67: 184.55 | E67: 184.55 | F67: MENSAL POR FUNCIONARIOS | G67: CLÁUSULA DÉCIMA SEGUNDA - AUXÍLIO ALIMENTAÇÃO
A68: D | B68: Fundo social odontológico | D68: 12.81 | E68: 12.81 | F68: MENSAL POR FUNCIONARIOS | G68: As empresas ficam obrigadas a conceder a seus empregados o auxílio alimentação no valor de R$ 45,23 (quarenta e cinco reais e vinte e três centavos) e a estes a cada 30 (trinta) e de uma única vez, pelos dias efetivamente trabalhados, independente da carga horária.
A69: E | B69: Auxilio Morte/Funeral | D69: 15.02 | E69: 15.02 | F69: MENSAL POR FUNCIONARIOS
A70: F | B70: Seguro de Vida | D70: 0 | G70: AUXÍLIO SAÚDE CLÁUSULA DÉCIMA QUARTA - PLANO AMBULATORIAL
A71: G | B71: Auxilio Lazer Cultura | D71: 28.33 | E71: 28.33 | F71: MENSAL POR FUNCIONARIOS | G71: Fica estipulado que para todos os contratos será obrigatório, por parte das empresas, a cotação em suas planilhas de custo, o plano ambulatorial no valor de R$ 184,55 (cento e oitenta e quatro reais e cinquenta e cinco centavos), unicamente por empregado envolvido e diretamente ativado na execução dos serviços, limitado ao quantitativo de profissionais contratados pelo tomador dos serviços
A72: TOTAL | D72: =SUM(D65:D71) -> 828.9956 | G72: Parágrafo Terceiro – Os sindicatos, profissional e da categoria econômica, ingressarão, em conjunto ou separadamente, com impugnação aos editais que não prevejam a cotação do plano ambulatorial, visando assim à implantação e manutenção da presente cláusula.
A73: MÓDULO 5: INSUMOS DIVERSOS
A74: A | B74: Uniformes | D74: =Uniformes!H12 -> 229.6922222
A75: B | B75: Materiais e equipamentos | D75: ='Materiais e Equipamentos'!I69 -> 164.2288889
A76: TOTAL | D76: =SUM(D74:D75) -> 393.9211111
A77: MÓDULO 6:CUSTOS INDIRETOS, LUCROS E TRIBUTOS
A78: A | B78: Custos Indiretos (administração) | C78: 0.0348 | D78: =($D$22+$D$63+$D$72+$D$76)*C78 -> 336.8051572
A79: B | B79: Lucros | C79: 0.0312 | D79: =($D$22+$D$63+$D$72+$D$76)*C79 -> 301.9632443
A80: SUBTOTAL (A+B) | C80: =SUM(C78:C79) -> 0.066 | D80: =SUM(D78:D79) -> 638.7684015
A81: C | B81: Tributos
A82: C.1 | B82: PIS | C82: 0.0065 | D82: =($D$22+$D$63+$D$72+$D$76)*C82 -> 62.90900924
A83: C.2 | B83: COFINS | C83: 0.03 | D83: =($D$22+$D$63+$D$72+$D$76)*C83 -> 290.3492734
A84: C.3 | B84: ISS | C84: 0.05 | D84: =($D$22+$D$63+$D$72+$D$76)*C84 -> 483.9154557
A85: SUBTOTAL (C.1+C.2+C.3) | C85: =SUM(C82:C84) -> 0.0865 | D85: =SUM(D82:D84) -> 837.1737383
A86: TOTAL | D86: =D80+D85 -> 1475.94214
A87: QUADRO RESUMO: CUSTO POR EMPREGADO
A88: MÃO DE OBRA VINCULADA À EXECUÇÃO CONTRATUAL | C88: Valor (R$)
A89: A | B89: COMPOSIÇÃO DA REMUNERAÇÃO | C89: =D22 -> 4770.051
A90: B | B90: TOTAL DOS ENCARGOS SOCIAIS | C90: =D63 -> 3685.341403
A91: C | B91: BENEFÍCIOS MENSAIS E DIÁRIOS | C91: =D72 -> 828.9956
A92: D | B92: INSUMOS DIVERSOS | C92: =D76 -> 393.9211111
A93: E | B93: CUSTOS INDIRETOS, LUCROS E TRIBUTOS | C93: =D86 -> 1475.94214
A94: TOTAL | C94: =SUM(C89:C93) -> 11154.25125

Sheet Uniformes
A1: PLANILHA DE PESQUISA DE PREÇOS Detalhamento do custo do Uniforme
A3: UNIFORME | B3: MATERIAL | C3: QTD. Ano | D3: COTAÇÃO 1 | E3: COTAÇÃO 2 | F3: COTAÇÃO 3 | G3: Codevasf - Preço Unitário | H3: Codevasf - Custo Total
A4: Gandola | B4: Padrão aprovado pelo Corpo de Bombeiros Militar | C4: 4 | D4: 217 | E4: 187.21 | F4: 179.9 | G4: =(+F4+E4+D4)/3 -> 194.7033333 | H4: =G4*C4 -> 778.8133333
A5: Calça | B5: Padrão aprovado pelo Corpo de Bombeiros Militar | C5: 4 | D5: 183 | E5: 169 | F5: 167 | G5: =(+F5+E5+D5)/3 -> 173 | H5: =G5*C5 -> 692
A6: Blusão de frio | B6: Padrão aprovado pelo Corpo de Bombeiros Militar | C6: 1 | D6: 266 | E6: 291 | F6: 297.5 | G6: 284.8333333 | H6: 284.8333333
A7: Cinto | B7: Confeccionado em poliéster, com fivela e ponteira prata | C7: 2 | D7: 24.9 | E7: 14.9 | F7: 13.9 | G7: 17.9 | H7: 35.8
A8: Camiseta | B8: 100% Algodão | C8: 8 | D8: 24.99 | E8: 59.99 | F8: 30.9 | G8: 38.62666667 | H8: 309.0133333
A9: Coturno (par) | B9: Cabedal em couro nobuk hidrofugado, espessura de 2mm, dublado com tecido de poliéster e colarinho de couro pelica; forração interna de acrílico automotivo, com isolamento térmico em EVA; reforço interno de material termoplástico leve e resistente, no bico e calcanhar; solado de borracha maciço, vulcanizado ao cabedal, resistente à corrente elétrica; Vedação resistente à água ou 100% impermeável. | C9: 2 | D9: 174.97 | E9: 259.5 | F9: 369.9 | G9: 268.1233333 | H9: 536.2466667
A10: Meias (par) | B10: Confeccionado em algodão e lycra | C10: 4 | D10: 24.9 | E10: 28.41 | F10: 28.41 | G10: 29.9 | H10: 119.6
A11: Custo Anual do uniforme para um profissional | H11: =SUM(H4:H10) -> 2756.306667 | I11: =H11*8 -> 22050.45333
A12: Custo Mensal do uniforme para um profissional | H12: =H11/12 -> 229.6922222 | I12: =H12*8 -> 1837.537778

Sheet Materiais e Equipamentos
A1: PLANILHA DE PESQUISA DE PREÇOS MATERIAIS E EQUIPAMENTOS PARA SALVAMENTO
A2: Item | B2: Descrição | C2: Unidade de Fornecimento | D2: QTD Total | E2: COTAÇÃO 1 | F2: COTAÇÃO 2 | G2: COTAÇÃO 3 | H2: Preço Unit. CODEVASF | I2: Preço Total Codevasf
A3: 1 | B3: Alicate bico meia cana 6 polegadas | C3: Und | D3: 2 | E3: 25 | F3: 19.5 | G3: 26.9 | H3: =(E3+F3+G3)/3 -> 23.8 | I3: =H3*D3 -> 47.6
A4: 2 | B4: Alicate corte diagonal 6 polegadas | C4: Und | D4: 2 | E4: 23.64 | F4: 25.13 | G4: 30.81 | H4: =(E4+F4+G4)/3 -> 26.52666667 | I4: 53.05333333
A5: 3 | B5: Alicate universal 8 polegadas | C5: Und | D5: 2 | E5: 28.69 | F5: 47.9 | G5: 48.7 | H5: 41.76333333 | I5: 83.52666667
A6: 4 | B6: Arco de serra fixo de 12'' com lâmina | C6: Und | D6: 2 | E6: 43.4 | F6: 55.76 | G6: 42.58 | H6: 47.24666667 | I6: 94.49333333
A7: 5 | B7: Chave de fenda teste, com "neon", de 100 a 500 volts | C7: Und | D7: 2 | E7: 29.9 | F7: 18.9 | G7: 16.54 | H7: 21.78 | I7: 43.56
A8: 6 | B8: Chaves de fenda: 1/8 x 4'', 3/16 x 4' e 1,4 x 5'' | C8: Jogo | D8: 2 | E8: 17.92 | F8: 9.72 | G8: 17.92 | H8: 15.18666667 | I8: 30.37333333
A9: 7 | B9: Chaves Philips: 1/4 x 4'', 1/4 x 6'', 1/8 x 3'' e 3/16 x 3'' | C9: Jogo | D9: 2 | E9: 18.29 | F9: 9.41 | G9: 9.6 | H9: 12.43333333 | I9: 24.86666667
A10: 8 | B10: Facão de 18'', em aço carbono, com cabo em polipropileno | C10: Und | D10: 2 | E10: 26.9 | F10: 27.59 | G10: 27.56 | H10: 27.35 | I10: 54.7
A11: 9 | B11: Machado para bombeiro, com cabeça chata,cunha de ferro cortante e cabo de madeira | C11: Und | D11: 2 | E11: 59.32 | F11: 75.2 | G11: 81.1 | H11: 71.87333333 | I11: 143.7466667
A12: 10 | B12: Marreta de 5kg, com base polida, cabo curto de madeira fixado com cunhas metálicas | C12: Und | D12: 2 | E12: 155 | F12: 130.79 | G12: 137.35 | H12: 141.0466667 | I12: 282.0933333
A13: 11 | B13: Martelo de aço com cabo e madeira e mínio de 250mm de comprimento | C13: Und | D13: 2 | E13: 39.75 | F13: 33.85 | G13: 36.81 | H13: 36.80333333 | I13: 73.60666667
A14: 12 | B14: Pé de cabra 3/4'' x 80cm | C14: Und | D14: 2 | E14: 89.49 | F14: 81.68 | G14: 62.79 | H14: 77.98666667 | I14: 155.9733333
A15: 13 | B15: Talhadeira em aço especial com empunhadura | C15: Und | D15: 2 | E15: 42.9 | F15: 25.99 | G15: 24.89 | H15: 31.26 | I15: 62.52
A16: VALOR TOTAL ANUAL | I16: =SUM(I3:I15) -> 1150.113333
A18: CUSTO MENSAL POR FUNCIONÁRIO (VALOR MENSAL / 08/12) | I18: =I16/8/12 -> 11.98034722
A21: MATERIAS E EQUIPAMENTOS PARA O SOCORRISTA DO CAMPO DE TREINAMENTO
A22: Item | B22: Descrição | C22: Unidade de Fornecimento | D22: QTD Total | E22: COTAÇÃO 1 | F22: COTAÇÃO 2 | G22: COTAÇÃO 3 | H22: Preço Unit. CODEVASF | I22: Preço Total Codevasf
A23: 1 | B23: ÁGUA OXIGENADA 10 volumes embalada em frascos de plástico de 200ml | C23: Und | D23: 2 | E23: 12.46 | F23: 3.21 | G23: 7.5 | H23: =(E23+F23+G23)/3 -> 7.723333333 | I23: =H23*D23 -> 15.44666667
A24: 2 | B24: ÁLCOOL (70% - litro) | C24: Und | D24: 4 | E24: 12.79 | F24: 11.9 | G24: 7.3 | H24: =(E24+F24+G24)/3 -> 10.66333333 | I24: =H24*D24 -> 42.65333333
A25: 3 | B25: ÁLCOOL IODADO para superfícies fixas, antissepsia da pele em procedimentos de médio e baixo risco, embalado em frascos plásticos de 500ml | C25: Und | D25: 2 | E25: 33.9 | F25: 24.9 | G25: 29.9 | H25: 29.56666667 | I25: 59.13333333
A26: 4 | B26: ALGODÃO BOLAS (50g) | C26: Und | D26: 10 | E26: 5.5 | F26: 5.37 | G26: 3.9 | H26: 4.923333333 | I26: 49.23333333
A27: 5 | B27: ATADURA CREPE 10cm de largura, 1,80m. | C27: Und | D27: 10 | E27: 3.11 | F27: 0.33 | G27: 4.49 | H27: 2.643333333 | I27: 26.43333333
A28: 6 | B28: ATADURA CREPE 20cm de largura, 1,80m. | C28: Und | D28: 10 | E28: 2.47 | F28: 2.3 | G28: 2.81 | H28: 2.526666667 | I28: 25.26666667
A29: 7 | B29: BANDAGENS TRIANGULARES (142 cm x 100 cm x 100 cm) | C29: Und | D29: 5 | E29: 21 | F29: 20.9 | G29: 19.9 | H29: 20.6 | I29: 103
A30: 8 | B30: CAIXA DE PRIMEIROS SOCORROS | C30: Und | D30: 2 | E30: 38.9 | F30: 38.86 | G30: 37.25 | H30: 38.33666667 | I30: 76.67333333
A31: 9 | B31: COBERTOR/LENÇOL TÉRMICO DE EMERGÊNCIA | C31: Und | D31: 15 | E31: 33.09 | F31: 21.2 | G31: 29.9 | H31: 28.06333333 | I31: 420.95
A32: 10 | B32: Colar cervical 4x1 em polietileno de alta densidade, com espessura mínima de 1,5mm, revestido em espuma macia tipo "E.V.A", fecho em velcro de 05mm em um dos lados, abertura frontal que permite a palpação do pulso carotídeo e acesso a traqueia, botões em plástico resistente, possibilita rádio-transparência, tamanho universal. | C32: Und | D32: 2 | E32: 314.83 | F32: 312.55 | G32: 246.5 | H32: 291.2933333 | I32: 582.5866667
A33: 11 | B33: Colete de imobilização dorsal tipo KED, em nylon, para imobilização desde a cabeça até a região do coccix, com 3 (três) tirantes em cores diferentes para imbilização do tronco e outros 02 (dois) tirantes para fixação dos membros inferiores, regulagem para fixação da tesa e queixo, almofada para apoio da cabeça, todos com engate rápido, acondicionado em sacola de nylon. | C33: Und | D33: 2 | E33: 47.9 | F33: 86.24 | G33: 49.99 | H33: 61.37666667 | I33: 122.7533333
A34: 12 | B34: COMPRESSAS DE GAZE ESTERILIZADAS (10 cm x 15 cm) – pacote com 10 unidades | C34: Und | D34: 20 | E34: 3.46 | F34: 2.85 | G34: 2.74 | H34: 3.016666667 | I34: 60.33333333
A35: 13 | B35: CURATIVO ADESIVO protetor retangular (caixa com 40) | C35: Und | D35: 5 | E35: 6.9 | F35: 6.9 | G35: 6.85 | H35: 6.883333333 | I35: 34.41666667
A36: 14 | B36: ESPARADRAPO IMPERMEÁVEL 10cmx4,5m. | C36: Und | D36: 4 | E36: 21.9 | F36: 20.79 | G36: 15.69 | H36: 19.46 | I36: 77.84
A37: 15 | B37: FITA ADESIVA (CREPE) 25mm x 50m | C37: Und | D37: 1 | E37: 13.9 | F37: 10.59 | G37: 9.81 | H37: 11.43333333 | I37: 11.43333333
A38: 16 | B38: GAZE 8 DOBRAS 7,5cm X 7,5cm. 100 unidades cada pacote | C38: Und | D38: 5 | E38: 0.84 | F38: 0.95 | G38: 1.02 | H38: 0.9366666667 | I38: 4.683333333
A39: 17 | B39: Lençol Descartável Uso Hospitalar; Matéria Prima: 100% Fibra Celulose Natural; Dimensões: 50 Cm X 50 M; Apresentação 1: Em Rolo | C39: Und | D39: 3 | E39: 18.13 | F39: 29.45 | G39: 17.9 | H39: 21.82666667 | I39: 65.48
A40: 18 | B40: LUVAS PROCEDIMENTO. Caixa com 50 unidades | C40: Und | D40: 3 | E40: 21.34 | F40: 17.99 | G40: 18.07 | H40: 19.13333333 | I40: 57.4
A41: 19 | B41: MACA DOBRÁVEL tipo maleta, leve, estrutura em alumínio polido, espuma de densidade D28, revestido em courvim com verniz, com duas alças e rodinhas para transporte, trava de segurança em todos os pés, capacidade de até 130 Kg (170Kg), dimensões: abeta: 1,80 mt 0,60 cm, altura 0,75cm em relação ao solo e dimensões fechadas de 0,90 cm x 0,60 cm. | C41: Und | D41: 1 | E41: 389 | F41: 483 | G41: 393.81 | H41: 421.9366667 | I41: 421.9366667
A42: 20 | B42: MÁSCARA CIRÚRGICA (caixa com 50) | C42: Und | D42: 2 | E42: 13.99 | F42: 17.99 | G42: 16.07 | H42: 16.01666667 | I42: 32.03333333
A43: 21 | B43: MÁSCARA RCP DESCARTÁVEL (unidade) | C43: Und | D43: 10 | E43: 7.36 | F43: 7.38 | G43: 10.67 | H43: 8.47 | I43: 84.7
A44: 22 | B44: MONITOR DE PRESSÃO ARTERIAL e batimentos cardíacos, ajuste da insuflação automático, de braço, digital, com braçadeira pequena e grande, indicador de nível de carga de bateria, data e hora, memória, visor de cristal líquido. | C44: Und | D44: 2 | E44: 80.14 | F44: 222.18 | G44: 159.99 | H44: 154.1033333 | I44: 308.2066667
A45: 23 | B45: PINÇA DISSECÇÃO 16cm, sem dente | C45: Und | D45: 2 | E45: 20.33 | F45: 40 | G45: 24.99 | H45: 28.44 | I45: 56.88
A46: 24 | B46: PRANCHA longa de madeira ou material similar resistência (190cm x 45cm) com imobilizador lateral de cabeça confeccionado em espuma injetada e com tirantes para fixação da testa e queixo | C46: Und | D46: 2 | E46: 537 | F46: 762.59 | G46: 689 | H46: 662.8633333 | I46: 1325.726667
A47: 25 | B47: PROTETOR DE QUEIMADURAS E EVISCERAÇÕES | C47: Und | D47: 5 | E47: 15 | F47: 8.15 | G47: 14.9 | H47: 12.68333333 | I47: 63.41666667
A48: 26 | B48: SOLUÇÃO FISIOLÓGICA 250ml | C48: Und | D48: 4 | E48: 7.31 | F48: 8.87 | G48: 10.4 | H48: 8.86 | I48: 35.44
A49: 27 | B49: TALA moldável grande (86cmx10x2) | C49: Und | D49: 3 | E49: 15.54 | F49: 16.4 | G49: 39.5 | H49: 23.81333333 | I49: 71.44
A50: 28 | B50: TALA moldável média (63cmx9x2) | C50: Und | D50: 3 | E50: 14.78 | F50: 15.8 | G50: 20.75 | H50: 17.11 | I50: 51.33
A51: 29 | B51: TALA moldável pequena (30cmx8x2) | C51: Und | D51: 3 | E51: 11.61 | F51: 10.52 | G51: 9.22 | H51: 10.45 | I51: 31.35
A52: 30 | B52: TERMÔMETRO clínico digital com no mínimo, aviso sonoro, visor de temperatura com 03 (três) dígitos, ponta flexível, desligamento automático, dimensões: 2cmx13cmx1cm (PxLxD), bateria substituível, erro máximo: 0,2ºC, 1 pilha LR41 de 1,5V | C52: Und | D52: 2 | E52: 18.9 | F52: 19.59 | G52: 22 | H52: 20.16333333 | I52: 40.32666667
A53: 31 | B53: TESOURA de ponta romba especial para APH, destinado ao corte de roupas. Com lâminas ponta romba e com corte liso. A segunda lâmina contem apoio para corte semicircular e corte micro-serrilhado. | C53: Und | D53: 2 | E53: 36.9 | F53: 41.34 | G53: 50 | H53: 42.74666667 | I53: 85.49333333
A54: 32 | B54: PADIOLA dobrável no padrão (1,90m x 0,60m) com três cintos para afixar a vítima, confeccionada com material de alta qualidade com resistência mínima de 150 kg, em lona impermeável. | C54: Und | D54: 1 | E54: 1154.3 | F54: 1480 | G54: 1080 | H54: =(E54+F54+G54)/3 -> 1238.1 | I54: 1238.1
A55: 33 | B55: BOLSA TÉRMICA de gel para uso quente ou gelado. 25 cm x 14 cm. | C55: Und | D55: 2 | E55: 10.9 | F55: 26 | G55: 15.89 | H55: 17.59666667 | I55: 35.19333333
A56: 34 | B56: CABO DE RESGATE com 100m de extensão, de 11,5 mm de diâmetro, de poliamida, para trabalho leve (resgate) do tipo A, com carga de ruptura mínima de 3.200 kg. | C56: Und | D56: 2 | E56: 444 | F56: 439.8 | H56: 294.6 | I56: 589.2
A57: 35 | B57: CADEIRA DE RODAS em aço tubular, estrutura dobrável em x, apoio de braços escomoteáveis e injetados, apoio de pernas elevável e rebatível lateralmente, freios bilaterais, rodas traseiras de 24", dianteiras de 6", com rolamentos, estofamento em courvim ou nylon impermeável, pintura epoxi e capacidade para 160 Kg. | C57: Und | D57: 1 | E57: 956.25 | F57: 1022.1 | G57: 1165.9 | H57: 1048.083333 | I57: 1048.083333
A58: 36 | B58: CAPACETE DE SEGURANÇA com catraca e jugular Tipo III. | C58: Und | D58: 12 | E58: 67.56 | F58: 68.9 | G58: 48.85 | H58: 61.77 | I58: 741.24
A59: 37 | B59: EQUIPAMENTO DE RADIOCOMUNICAÇÃO de boa qualidade de recepção/transmissão, inclusive em subsolos, sem necessidade de licença da ANATEL, compostos por rádio, bateria recarregável, carregadores e baterias sobressalentes. Equipamento deve ser compativel com o equipamento de radiocomunicação da equipe de Vigilância. | C59: Und | D59: 7 | E59: 89 | F59: 99.96 | G59: 129.77 | H59: 106.2433333 | I59: 743.7033333
A60: 38 | B60: FITA ZEBRADA para isolamento (48mm x 14m) | C60: Und | D60: 10 | E60: 22.51 | F60: 18.9 | G60: 12.49 | H60: 17.96666667 | I60: =H60*D60 -> 179.6666667
A61: 39 | B61: LANTERNA DE MÃO com fonte recarregável. | C61: Und | D61: 7 | E61: 109.99 | F61: 48.58 | G61: 65.9 | H61: 74.82333333 | I61: 523.7633333
A62: 40 | B62: LUVAS para combate a incêndio - pares | C62: Und | D62: 12 | E62: 138.71 | F62: 147.55 | G62: 658.19 | H62: 314.8166667 | I62: 3777.8
A63: 41 | B63: MEGAFONE com potência de no mínimo 35W, alimentação com bateria de 12v, alcance de no mínimo 600m, peso de 2,5Kg, com manopla e alça de carregamento | C63: Und | D63: 2 | E63: 75 | F63: 74.99 | G63: 99.18 | H63: 83.05666667 | I63: 166.1133333
A64: 42 | B64: POCHETE confeccionada em tecido nylon, com duas divisórias para colocar tesoura, luvas, RCP, gaze e atadura. | C64: Und | D64: 12 | E64: 60.83 | F64: 163.9 | G64: 57.52 | H64: 94.08333333 | I64: 1129
A65: VALOR TOTAL ANUAL | I65: =SUM(I23:I64) -> 14615.86
A67: CUSTO MENSAL POR FUNCIONÁRIO (VALOR MENSAL / 08/12) | I67: =I65/8/12 -> 152.2485417
I68: =I16+I65 -> 15765.97333
H69: TOTAL GERAL | I69: =I18+I67 -> 164.2288889
